Workbook

Sheet Readme
B3: Excel kursus
B5: De sidste år jeg var på arbejdsmarkedet underviste jeg mange kollegaer I Excel,
B6: og denne fil repræsenterer den første af en række filer til brug ved dette kursus.
B8: Filen hedder ABC for at indikere, at det er absolut grundlæggende stof og derfor
B9: vil den sikkert være relativt uinteressant for mange.
B11: Vær opmærksom på, at filen er udarbejdet for mere end 10 år siden, hvorfor den
B12: ikke indeholder nogen af Excels nyere funktioner. Tværtimod kan den visse
B13: steder sikkert forekomme en smule forældet.
B15: I mange ark (første gang I ark 8) vil du finde noget i stil med følgende:
B17: Sæt x for hjælp
B19: Hvis du sætter et x I den indrammede celle (altså ikke i dette ark) vil du få vist et
B20: eksempel på, hvoran en given opgave kan løses. Behøver jeg nævne, at du selv-
B21: følgelig får mest læring ud af det, hvis du selv prøver at løse opgaven inden du
B22: sætter et x?
B24: Der vil muligvis også være en del læring at hente ved at studere, hvordan jeg
B25: har opbygget teksten, rækkenumre og kolonnenavne i de lysegrå områder og
B26: de forskellige løsningsforslag, herunder brug af betinget formatering.
B28: Der er I filen en brugerdefineret funktion (lavet i VBA), kaldet myCell.
B29: Funktionen er brugt første gang i ark 1, celle D18. Og hvorfor så det, tænker du
B30: måske. Forestil dig, at du, bevidst eller ubevidst, kom til at indsætte en ny række
B31: før række 5. Da ville der ske det, at alle cellereferencer under punkterne 1. til 4.
B32: ville blive forkerte i forhold til det, jeg lægger op til i teksten. Det vil måske ikke
B33: være den store ulykke i det konkrete tilfælde, men i andre situationer vil en
B34: lignende handling (primært indsættelse/sletning af rækker) helt sikkert skabe
B35: en masse forvirring. Funktionen myCell sikrer, at der refereres til korrekt celle.
B37: Har du lyst til at studere filen nærmere vil jeg ønske dig god fornøjelse, men alt
B38: er på eget ansvar, og jeg udelukker ikke, at der kan være fejl, selvom jeg har
B39: anstrengt mig for at undgå det. Specielt kan der muligvis, hist og her, forekomme
B40: en vis sprogforbistring, for eksempel at TRUE optræder i stedet for SAND, forår-
B41: saget af, at jeg altid har brugt og stadigvæk bruger en engelsksproget version
B42: af Excel.
B45: Hans K.
B46: April 2023

Sheet 1
C2: Indtastning og justering
D4: =CHAR(COLUMN()+64) -> D | E4: =CHAR(COLUMN()+64) -> E | F4: =CHAR(COLUMN()+64) -> F | G4: =CHAR(COLUMN()+64) -> G
C5: =ROW() -> 5
C6: =ROW() -> 6
C7: =ROW() -> 7
C8: =ROW() -> 8
C9: =ROW() -> 9
C10: =ROW() -> 10
C11: =ROW() -> 11
C12: =ROW() -> 12
C13: =ROW() -> 13
C14: =ROW() -> 14
C15: =ROW() -> 15
C16: =ROW() -> 16
C18: 1 | D18: ="Indtast dit fornavn i celle "&mycell(D5)&". Gør skriften fed og skriftfarven rød." -> Indtast dit fornavn i celle D5. Gør skriften fed og skriftfarven rød.
D19: Gør teksten venstrestillet.
C21: 2 | D21: ="Indtast dit efternavn i celle "&mycell(D6)&". Gør skriften fed og kursiveret," -> Indtast dit efternavn i celle D6. Gør skriften fed og kursiveret,
D22: og gør skriftfarven blå og venstrestillet..
C24: 3 | D24: ="Skriv dine initialer i hver af cellerne "&mycell(D8)&", "&mycell(D9)&" og "&mycell(D10)&"." -> Skriv dine initialer i hver af cellerne D8, D9 og D10.
D25: Formater de nævnte celler så initialerne er henholdsvis venstre-
D26: justeret, centreret og højrejusteret.
C28: 4 | D28: ="Skriv A, B, og C i henholdsvis cellerne "&mycell(E11)&", "&mycell(E12)&" og "&mycell(E13)&" og " -> Skriv A, B, og C i henholdsvis cellerne E11, E12 og E13 og
D29: formater de nævnte celler med henholdsvis et , to og tre klik på
D30: ikonet "Forøg indrykning".

Sheet 2
C2: Lidt om formatering af tal
D4: =CHAR(COLUMN()+64) -> D | E4: =CHAR(COLUMN()+64) -> E | F4: =CHAR(COLUMN()+64) -> F
C5: =ROW() -> 5
C8: 1 | D8: ="Indtast tallet 123456 i celle "&mycell(D5)&"." -> Indtast tallet 123456 i celle D5.
C10: 2 | D10: ="Med celle "&mycell(D5)&" aktiveret, indsæt tusindadskiller og to decimaler." -> Med celle D5 aktiveret, indsæt tusindadskiller og to decimaler.
C12: 3 | D12: Brug ikonet “Formindsk decimal" til at angive tallet med nul
D13: decimaler.
C15: 4 | D15: ="Indtast tallet 456789 i celle "&mycell(E5)&"." -> Indtast tallet 456789 i celle E5.
C17: 5 | D17: ="Med celle "&mycell(E5)&" aktiveret, indsæt tusindadskiller og nul decimaler." -> Med celle E5 aktiveret, indsæt tusindadskiller og nul decimaler.
D18: (Genvej: Ctrl+1, fanebladet Tal)
C20: 6 | D20: ="Indtast tallet 0,25 i celle "&mycell(F5)&"." -> Indtast tallet 0,25 i celle F5.
C22: 7 | D22: ="Med celle "&mycell(F5)&" aktiveret, tryk på ikonet ""Procenttypografi. Tryk" -> Med celle F5 aktiveret, tryk på ikonet "Procenttypografi. Tryk
D23: på ikonet "Forøg decimal et par gange og derefter på "For-
D24: mindsk decimal, også et par gange.

Sheet 3
C2: Relative kontra absolutte cellereferencer
D4: =CHAR(COLUMN()+64) -> D | E4: E | F4: F | G4: G | H4: H | I4: I | J4: J
C5: =ROW() -> 5
C6: =ROW() -> 6 | E6: Tal | F6: Kvadrat | H6: Tal | I6: 0.1 | J6: 0.2
C7: =ROW() -> 7 | E7: 10 | H7: 100
C8: =ROW() -> 8 | E8: 20 | H8: 200
C9: =ROW() -> 9 | E9: 30 | H9: 300
C10: =ROW() -> 10 | E10: 40 | H10: 400
C13: 1 | D13: ="Aktiver celle "&mycell(F7)&" og lav en formel der udregner kvadratet af tallet i celle" -> Aktiver celle F7 og lav en formel der udregner kvadratet af tallet i celle
D14: =mycell(E7)&". Formlen kan se sådan her ud:" -> E7. Formlen kan se sådan her ud:
D15: ="="&mycell(E7)&"*"&mycell(E7)&" eller ="&mycell(E7)&"^2. Kopier formlen nedad til og med "&mycell(F10)&"." -> =E7*E7 eller =E7^2. Kopier formlen nedad til og med F10.
C17: 2 | D17: ="Aktiver celle "&mycell(I7)&" og lav en formel der udregner den procentdel der står i" -> Aktiver celle I7 og lav en formel der udregner den procentdel der står i
D18: cellen oven for af tallet i cellen til venstre (altså i kolonne H).
D19: ="Kopier formlen til området "&mycell(I7)&":"&mycell(J10)&"." -> Kopier formlen til området I7:J10.
C21: 3 | D21: ="Aktiver for eksempel celle "&mycell(I9)&" og tryk på F2. Prøv nu med musen at " -> Aktiver for eksempel celle I9 og tryk på F2. Prøv nu med musen at
D22: markere for eksempel den sidste del af formlen og tryk på F4. Læg
D23: mærke til, hvordan formlen ændrer sig. Tryk på F4 flere gange.

Sheet 4
C2: Multiplikationstabel
C3: ="Lav en 10 x 10 gangetabel i området "&mycell(D8)&":"&mycell(M17)&". Cellerne må" -> Lav en 10 x 10 gangetabel i området D8:M17. Cellerne må | Q3: Når du har lavet 10-tabellen korrekt, så
C4: kun indeholde formler, ikke tal. Lav en formel der kan | Q4: prøv følgende:
C5: kopieres til hele tabellen.
D7: =U8 -> 1 | E7: =D7+$U$9 -> 2 | F7: 3 | G7: 4 | H7: 5 | I7: 6 | J7: 7 | K7: 8 | L7: 9 | M7: 10
A8: =$C8*D$7 -> 1 | C8: =U8 -> 1 | Q8: Startværdi | U8: 1
C9: =C8+$U$9 -> 2 | Q9: Trinværdi | U9: 1
C10: 3
C11: 4 | Q11: Prøv at lave gangetabellen ved brug af
C12: 5 | Q12: ovenstående "Startværdi" og "Trinværdi"
C13: 6
C14: 7 | Q14: Hint:
C15: 8 | Q15: ="Celle "&mycell(D8)&": "&_xlfn.FORMULATEXT(A8) -> Celle D8: =$C8*D$7
C16: 9 | Q16: ="Celle "&mycell(D7)&": ="&mycell(U8) -> Celle D7: =U8
C17: 10 | Q17: ="Celle "&mycell(E7)&": ="&mycell(D7)&" + "&mycell(U9,4) -> Celle E7: =D7 + $U$9
Q19: ="Kopier formlen i "&mycell(E7)&" til og med "&mycell(M7)&"." -> Kopier formlen i E7 til og med M7.
Q20: ="Samme princip i området "&mycell(C8)&":"&mycell(C17)&"." -> Samme princip i området C8:C17.
Q22: Prøv at eksperimentere med forskellige
Q23: start- og trinværdier.
C26: Referencetyper
C28: • | D28: Relativ: | H28: A1 | J28: Når en formel kopieres tilpasser cellereferencerne
J29: sig til den nye adresse.
C31: • | D31: Absolut | H31: $A$1 | J31: Når en formel kopieres ændres cellereferencerne
J32: ikke.
C34: • | D34: Række absolut, | H34: A$1 | J34: Når en formel kopieres ændres kolonnereferencen,
D35: kolonne relativ | J35: mens rækkereferencen ikke ændres.
C37: • | D37: Kolonne absolut, | H37: $A1 | J37: Når en formel kopieres ændres rækkereferencen,
D38: række relativ | J38: mens kolonnereferencen ikke ændres.

Sheet 5
C2: Operatorer
E3: Symbol | F3: Navn | G3: Funktion
C5: Aritmetiske operatorer | E5: + | F5: Plus | G5: Addition
C6: (samt tekstoperatoren &) | E6: - | F6: Minus | G6: Subtraktion
E7: / | F7: Skråstreg | G7: Division
E8: * | F8: Stjerne | G8: Multiplikation
E9: % | F9: Procent | G9: Division med 100
E10: ^ | F10: Caret | G10: Potensopløftning
E11: & | F11: OG-tegn | G11: Tekstsammenkædning
C14: Logiske operatorer | E14: = | F14: Lighedstegn | G14: x lig med y
E15: > | F15: Større end tegn | G15: x større end y
E16: < | F16: Mindre end tegn | G16: x mindre end y
E17: >= | F17: Større end eller lig med tegn | G17: x større end eller lig med y
E18: <= | F18: Mindre end eller lig med tegn | G18: x mindre end eller lig med y
E19: <> | F19: Ulighedstegn | G19: x forskellig fra y
C22: Referenceoperatorer | E22: : | F22: Kolon | G22: Skaber en reference til alle celler mellem to referencer, for eksem- pel A1:H10.
E23: ; | F23: Semikolon | G23: Foreningsmængdeoperator der kombinerer mange reference til én reference.
E24: Tryk på mellemrums- tasten | F24: Mellemrum | G24: Fællesmængdeoperator, der skaber en reference til celler der er fælles for to referencer.

Sheet 6
C2: Aritmetiske og logiske operatorer
D4: =CHAR(COLUMN()+64) -> D | E4: =CHAR(COLUMN()+64) -> E | F4: =CHAR(COLUMN()+64) -> F | G4: =CHAR(COLUMN()+64) -> G
C5: =ROW() -> 5 | D5: Operator | E5: Tal1 | F5: Tal2 | G5: Resultat
C6: =ROW() -> 6 | D6: + | E6: 5 | F6: 1
C7: =ROW() -> 7 | D7: - | E7: 6 | F7: 9
C8: =ROW() -> 8 | D8: * | E8: 9 | F8: 3
C9: =ROW() -> 9 | D9: / | E9: 8 | F9: 2
C10: =ROW() -> 10 | D10: ^ | E10: 5 | F10: 3
C11: =ROW() -> 11 | D11: = | E11: 5 | F11: 7
C12: =ROW() -> 12 | D12: > | E12: 9 | F12: 8
C13: =ROW() -> 13 | D13: < | E13: 8 | F13: 6
C14: =ROW() -> 14 | D14: <> | E14: 7 | F14: 5
C16: 1 | D16: ="Lav formler i cellerne "&mycell(G6)&":"&mycell(G14)&" der gør brug af" -> Lav formler i cellerne G6:G14 der gør brug af
D17: operatoren i kolonne D og tallene i kolonne
D18: E og F. En forholdsvis nem måde at oprette
D19: formlerne på er at starte med at indtaste:
D20: ="="&mycell(E6)&"+"&mycell(F6)&" i celle "&mycell(G6)&". Herefter trækker du fyld-" -> =E6+F6 i celle G6. Herefter trækker du fyld-
D21: ="håndtaget nedad til og med "&mycell(G14)&" for at kopiere." -> håndtaget nedad til og med G14 for at kopiere.
D22: ="formlen. Aktiver nu celle "&mycell(G7)&" og ret operator-" -> formlen. Aktiver nu celle G7 og ret operator-
D23: ="tegnet til -. Ret på tilsvarende måde operator-" -> tegnet til -. Ret på tilsvarende måde operator-
D24: ="tegnene i celle "&mycell(G8)&":"&mycell(G14)&"." -> tegnene i celle G8:G14.
C26: 2 | D26: ="Prøv at skrive A i celle "&mycell(E12)&" og B i celle "&mycell(F12)&". " -> Prøv at skrive A i celle E12 og B i celle F12.
D27: ="Prøv at ændre til C i celle "&mycell(E12)&"." -> Prøv at ændre til C i celle E12.
C29: 3 | D29: ="Prøv at skrive a i celle "&mycell(E14)&" og A i celle "&mycell(F14)&". " -> Prøv at skrive a i celle E14 og A i celle F14.

Sheet 7
C2: Operatoren &
D4: =CHAR(COLUMN()+64) -> D | E4: =CHAR(COLUMN()+64) -> E | F4: =CHAR(COLUMN()+64) -> F
C5: =ROW() -> 5
C6: =ROW() -> 6
C7: =ROW() -> 7
C8: =ROW() -> 8
C9: =ROW() -> 9
C10: =ROW() -> 10
C11: =ROW() -> 11
C12: =ROW() -> 12
C13: =ROW() -> 13
C15: 1 | D15: ="Indtast dit fornavn i celle "&mycell(D6)&" og dit efternavn i celle "&mycell(E6)&". Aktiver celle "&mycell(F6)&" og lav en formel der ved hjælp" -> Indtast dit fornavn i celle D6 og dit efternavn i celle E6. Aktiver celle F6 og lav en formel der ved hjælp
D16: af &-operatoren sammenkæder dit fornavn og efternavn (mellemrum mellem fornavn og efternavn).
C18: 2 | D18: ="Gentag (i række "&ROW(8:8)&") det, der nævnes under 1., men nu ved brug af funktionen SAMMENKÆDNING i stedet" -> Gentag (i række 8) det, der nævnes under 1., men nu ved brug af funktionen SAMMENKÆDNING i stedet
D19: for &-operatoren (igen skal der være mellemrum mellem fornavn og efternavn).
C21: 3 | D21: ="I celle "&mycell(D10)&" indtaster du teksten: ""Årets overskud var"" (uden anførselstegn), og i celle "&mycell(E10)&" indtaster du et" -> I celle D10 indtaster du teksten: "Årets overskud var" (uden anførselstegn), og i celle E10 indtaster du et
D22: syv-cifret tal.
D23: ="I celle "&mycell(F10)&" skal du herefter lave en formel der, ved sammenkædning af "&mycell(D10)&" og "&mycell(E10)&" frembringer en tekst der" -> I celle F10 skal du herefter lave en formel der, ved sammenkædning af D10 og E10 frembringer en tekst der
D24: ser sådan her ud: "Årets overskud var x.xxx.xxx", altså med tusindadskiller.
C26: 4 | D26: ="I celle "&mycell(D12)&" indtaster du teksten: ""Jeg er født den"" (uden anførselstegn), og i celle "&mycell(E12)&" indtaster du din" -> I celle D12 indtaster du teksten: "Jeg er født den" (uden anførselstegn), og i celle E12 indtaster du din
D27: fødselsdato.
D28: ="I celle "&mycell(F12)&" skal du herefter lave en formel der, ved sammenkædning af "&mycell(D12)&" og "&mycell(E12)&" frembringer en tekst " -> I celle F12 skal du herefter lave en formel der, ved sammenkædning af D12 og E12 frembringer en tekst
D29: der ser ud som for eksempel: "Jeg er født den 17. august 1985".

Sheet 8
C2: Referenceoperatorer
D4: =CHAR(COLUMN()+64) -> D | E4: =CHAR(COLUMN()+64) -> E | F4: =CHAR(COLUMN()+64) -> F | G4: =CHAR(COLUMN()+64) -> G | H4: =CHAR(COLUMN()+64) -> H
C5: =ROW() -> 5 | E5: Danmark | F5: Norge | G5: Sverige | H5: Finland
C6: =ROW() -> 6 | D6: Produkt 1 | E6: 67150 | F6: 55303 | G6: 71884 | H6: 69278
C7: =ROW() -> 7 | D7: Produkt 2 | E7: 37736 | F7: 81026 | G7: 41876 | H7: 36387
C8: =ROW() -> 8 | D8: Produkt 3 | E8: 56639 | F8: 22178 | G8: 22446 | H8: 92904
C9: =ROW() -> 9 | D9: Produkt 4 | E9: 47179 | F9: 62422 | G9: 37504 | H9: 36594
C11: 1 | D11: ="Lav en formel i celle "&mycell(D14)&" der ved hjælp af SUM-funktionen og operatoren "";""" -> Lav en formel i celle D14 der ved hjælp af SUM-funktionen og operatoren ";"
D12: ="(semikolon) finder summen af "&mycell(E6)&", "&mycell(F7)&", "&mycell(G8)&" og trækker "&mycell(H9)&" fra." -> (semikolon) finder summen af E6, F7, G8 og trækker H9 fra.
A14: =SUM(E6,F7,G8,-H9) -> 134028 | F14: Sæt x for hjælp
H16: =IF(H14="x",showformula(A14),"") -> 
D20: =CHAR(COLUMN()+64) -> D | E20: =CHAR(COLUMN()+64) -> E | F20: =CHAR(COLUMN()+64) -> F | G20: =CHAR(COLUMN()+64) -> G | H20: =CHAR(COLUMN()+64) -> H
C21: =ROW() -> 21 | E21: Danmark | F21: Norge | G21: Sverige | H21: Finland
C22: =ROW() -> 22 | D22: Produkt1 | E22: 67150 | F22: 55303 | G22: 71884 | H22: 69278
C23: =ROW() -> 23 | D23: Produkt2 | E23: 37736 | F23: 81026 | G23: 41876 | H23: 36387
C24: =ROW() -> 24 | D24: Produkt3 | E24: 56639 | F24: 22178 | G24: 22446 | H24: 92904
C25: =ROW() -> 25 | D25: Produkt4 | E25: 47179 | F25: 62422 | G25: 37504 | H25: 36594
C27: 2 | D27: ="Lav en formel i celle "&mycell(D34)&" der ved hjælp af operatoren ""Mellemrum"" finder" -> Lav en formel i celle D34 der ved hjælp af operatoren "Mellemrum" finder
D28: summen af hvor meget der er solgt i Norge i alt.
D29: ="Før du kan gøre det skal du markere "&mycell(E22)&":"&mycell(H25)&", herefter trykke på Formler (på" -> Før du kan gøre det skal du markere E22:H25, herefter trykke på Formler (på
D30: båndet), derefter på Opret ud fra markering (båndet i afsnittet Definerede
D31: navne), sæt flueben ved Øverste række og Venstre kolonne, tryk OK.
A34: =SUM(Norge) ->  | C34: =ROW() -> 34 | E34: =IFERROR("Prøv formlen: "&showformula(A34),"") -> 
A35: =SUM(Produkt2) ->  | C35: =ROW() -> 35 | E35: =IFERROR("Prøv formlen: "&showformula(A35),"") -> 
A36: =SUM(Produkt4 Finland) ->  | C36: =ROW() -> 36 | E36: =IFERROR("Prøv formlen: "&showformula(A36),"") -> 
C41: =ROW() -> 41 | D41: Norge | E41: Vælg land
C42: =ROW() -> 42 | D42: Produkt4 | E42: Vælg produkt
C43: =ROW() -> 43 | D43: =IFERROR(SUM(INDIRECT(D41) INDIRECT(D42)),"") ->  | E43: =IF(D43="","",Resultat) -> 

Sheet 9
C2: Parenteser
D4: =CHAR(COLUMN()+64) -> D | E4: =CHAR(COLUMN()+64) -> E | F4: =CHAR(COLUMN()+64) -> F | H4: Operator forrang
C5: =ROW() -> 5 | D5: = 1 + 2/3 | H5: Hvis du kombinerer flere operatorer i én formel,
C6: =ROW() -> 6 | D6: = (1 + 2)/3 | H6: udføres handlingerne i den rækkefølge, de vises i,
C7: =ROW() -> 7 | D7: = (3 – 2) – 1 | H7: i følgende tabel. Hvis en formel indeholder flere
C8: =ROW() -> 8 | D8: = 3 – (2 – 1) | H8: operatorer, for eksempel både en multiplikations-
C9: =ROW() -> 9 | D9: = 5^2 | H9: og en divisionsoperator, læses operatorerne auto-
C10: =ROW() -> 10 | D10: = -5^2 | H10: matisk fra venstre mod højre.
C11: =ROW() -> 11 | D11: = -(5^2)
C12: =ROW() -> 12 | D12: = -5*2^2 | H12: Operator | I12: Beskrivelse
H13: : (kolon) | I13: Referenceoperatorer
C14: 1 | D14: ="Prøv i cellerne "&mycell(E5)&":"&mycell(E12)&" at skrive (som tekst) det," -> Prøv i cellerne E5:E12 at skrive (som tekst) det, | H14: (mellemrum)
D15: du mener skal være resultatet af regnestykket | H15: , (komma)
D16: i cellen umiddelbart til venstre. | H16: - | I16: Negation
H17: % | I17: Procent
C18: 2 | D18: ="Prøv herefter i cellerne "&mycell(F5)&":"&mycell(F12)&" at oprette" -> Prøv herefter i cellerne F5:F12 at oprette | H18: ^ | I18: Potensopløftning
D19: formler svarende til dem der (som tekst) er | H19: * og / | I19: Multiplikation og division
D20: ="vist i cellerne "&mycell(D5)&":"&mycell(D11)&"." -> vist i cellerne D5:D11. | H20: + og - | I20: Addition og subtraktion
H21: & | I21: Forbinder to tekststrenge
H22: = < > <= >= <> | I22: Sammenligningsoperatorer

Sheet 10
C2: Et par øvelser med parenteser
D4: =CHAR(COLUMN()+64) -> D | E4: =CHAR(COLUMN()+64) -> E | F4: =CHAR(COLUMN()+64) -> F | G4: =CHAR(COLUMN()+64) -> G | H4: =CHAR(COLUMN()+64) -> H
C6: =ROW() -> 6 | E6: ="Tænk på et helt tal og indtast tallet i celle "&SUBSTITUTE(CELL("address",D6),"$","")&". Aktiver nu" -> Tænk på et helt tal og indtast tallet i celle D6. Aktiver nu
E7: ="celle "&mycell(D11)&" og indtast en formel der tager udgangspunkt i" -> celle D11 og indtast en formel der tager udgangspunkt i
D8: =IF(D6=36,"JJJ","") ->  | E8: ="tallet i celle "&SUBSTITUTE(CELL("address",D6),"$","")&". Herefter udvides formlen i overensstem-" -> tallet i celle D6. Herefter udvides formlen i overensstem-
E9: melse med instruktionerne herunder:
C11: =ROW() -> 11 | E11: ="• læg 20 til det tal du indtastede i celle "&mycell(D6)&" oven for." -> • læg 20 til det tal du indtastede i celle D6 oven for.
E12: • multiplicer resultatet med fire
E13: • træk otte fra resultatet
E14: • divider resultatet med to
E15: ="• fratræk to gange det tal du indtastede i celle "&mycell(D6)&"." -> • fratræk to gange det tal du indtastede i celle D6.
C17: Læs kommentaren til den celle, hvor der er en lille rød trekant i højre hjørne.
C19: Sæt x hvis du ønsker hjælp | H19: =((D6+20)*4-8)/2-2*D6 -> 36
C24: Hvis du føler dig fortrolig med at sætte parenteser korrekt, så prøv at "scrolle" ned til
C25: ="række "&ROW(50:50)&" og løs den opgave, du finder der." -> række 50 og løs den opgave, du finder der.
C50: ="Lav en formel i celle "&mycell(H53)&" der korrekt udregner udtrykket herunder:" -> Lav en formel i celle H53 der korrekt udregner udtrykket herunder:
H52: Fn
G53: 1
C58: Hvis du er interesseret i matematik vil du vide, at de tal der genereres af denne formel
C59: kaldes en Fibonacci sequence. De blev første gang omtalt af Leonardo af Pisa, eller
C60: Fibonacci som han blev kaldt, i 1202, hvor de fremkommer som en elegant løsning på
C61: et problem, om hvordan antallet af kaniner i en bestand – under nogle givne
C62: forudsætninger – vokser.
C64: ="I celle "&mycell(G53)&" (den gule) kan du skiftevis indtaste tallene 1, 2, 3, ….. , 15. Hvis du får" -> I celle G53 (den gule) kan du skiftevis indtaste tallene 1, 2, 3, ….. , 15. Hvis du får
C65: følgende resultater er din formel korrekt:
C66: 1 , 1 , 2 , 3 , 5 , 8 , 13 , 21, 34 , 55 , 89 , 144 , 233 , 377 , 610
C68: Hvis du umiddelbart får korrekt resultat har du en god forståelse af at sætte parenteser
C69: korrekt.
C71: ="Ønsker du hjælp, kan du ""scrolle"" ned til række "&ROW(100:100)&"." -> Ønsker du hjælp, kan du "scrolle" ned til række 100.
C74: En anden måde at generere disse tal på er at indtaste 0 og 1 som her | H74: 0
H75: 1
C76: ="og herefter i celle "&mycell(H76)&" at indtaste formlen "&_xlfn.FORMULATEXT(H76) -> og herefter i celle H76 at indtaste formlen =H74+H75 | H76: =H74+H75 -> 1
C77: og så kopiere denne formel nedad. | H77: =H75+H76 -> 2
H78: 3
H79: 5
C100: =(1/SQRT(5)) *(((1+SQRT(5))/2)^G53 - ((1-SQRT(5))/2)^G53) -> 1 | D100: =_xlfn.FORMULATEXT(C100) -> =(1/SQRT(5)) *(((1+SQRT(5))/2)^G53 - ((1-SQRT(5))/2)^G53)
C103: =(1/5^(1/2)) * (((1+5^(1/2))/2)^G53 - ((1-5^(1/2))/2)^G53) -> 1 | D103: =_xlfn.FORMULATEXT(C103) -> =(1/5^(1/2)) * (((1+5^(1/2))/2)^G53 - ((1-5^(1/2))/2)^G53)

Sheet 11
C2: Undgå faste tal i en formel
D4: =CHAR(COLUMN()+64) -> D | E4: E | F4: F | G4: G | H4: H | I4: I
C5: =ROW() -> 5
C6: =ROW() -> 6 | D6: Hvis du for eksempel laver en månedlig omkostningsopfølgningsrapport og denne rapport
C7: =ROW() -> 7 | D7: altid skal indeholde en overskrift, hvoraf den aktuelle måned fremgår, så kan du selv-
C8: =ROW() -> 8 | D8: følgelig lave noget i stil med følgende:
C9: =ROW() -> 9
C10: =ROW() -> 10 | E10: Omkostningsopfølgning pr. 31-03-2011
C11: =ROW() -> 11
C12: =ROW() -> 12 | D12: altså som en ren tekststreng. Langt bedre er det dog at indtaste den relevante dato i en
C13: =ROW() -> 13 | D13: ="separat celle, for eksempel i "&mycell(E15)&" og så bruge en formel som vist i "&mycell(E17)&"." -> separat celle, for eksempel i E15 og så bruge en formel som vist i E17.
C14: =ROW() -> 14
C15: =ROW() -> 15 | E15: 2011-03-31
C16: =ROW() -> 16
C17: =ROW() -> 17 | E17: ="Omkostningsopfølgning pr. "&TEXT(E15,"dd-mm-åååå") -> Omkostningsopfølgning pr. 31-03-2011
C18: =ROW() -> 18
C19: =ROW() -> 19 | D19: Når du skal lave rapporten for den næste måned vil du indse fordelen ved at bruge
C20: =ROW() -> 20 | D20: ="formlen i celle "&mycell(E17)&" frem for tekststrengen i celle "&mycell(E10)&"." -> formlen i celle E17 frem for tekststrengen i celle E10.
C21: =ROW() -> 21
C22: =ROW() -> 22 | E22: Forsøg altid at undgå konstanter i formler!

Sheet 12
C2: Simple formler - 1
C4: Prøv i de grå celler nedenfor at opstille en formel der udregner spørgsmålet til venstre.
C6: 1 | D6: Hvad er is 16 gange 8 | G6: =16*8 -> 128 | H6: =showformula(G6) -> =16*8
C7: 2 | D7: Hvad er 84 divideret med 7 | G7: =84/7 -> 12 | H7: =showformula(G7) -> =84/7
C8: 3 | D8: Hvad er 220 DKK omregnet til USD, hvis kursen er 5,50 | G8: =220/5.5 -> 40 | H8: =showformula(G8) -> =220/5,5
C9: 4 | D9: Hvad er 25 opløftet til en halv | G9: =25^(1/2) -> 5 | H9: =showformula(G9) -> =25^(1/2)
C10: 5 | D10: Hvad er 25% af 100 | G10: =25%*100 -> 25 | H10: =showformula(G10) -> =25%*100
C11: 6 | D11: Hvad er 20% af 125 | G11: =20%*125 -> 25 | H11: =showformula(G11) -> =20%*125
C12: 7 | D12: Hvad er summen af 17, 19 og 28, divideret med 8, ganget med 9 | G12: =SUM(17,19,28)/8*9 -> 72 | H12: =showformula(G12) -> =SUM(17;19;28)/8*9
C13: 8 | D13: Købspris 110, salgspris 250,- hvor meget er 10% af bruttofortjnesten | G13: =(250-110)*0.1 -> 14 | H13: =showformula(G13) -> =(250-110)*0,1
C14: 9 | D14: Hvad er summen af SAND og FALSK | G14: =TRUE+FALSE -> 1 | H14: =showformula(G14) -> =TRUE+FALSE
C15: 10. | D15: Hvad er summen af SAND og SAND | G15: =TRUE+TRUE -> 2 | H15: =showformula(G15) -> =TRUE+TRUE
C16: 11. | D16: ="Hvad er summen af tallene i området "&mycell(E6)&" til "&mycell(E15) -> Hvad er summen af tallene i området E6 til E15 | G16: =SUM(G6:G15) -> 324 | H16: =showformula(G16) -> =SUM(G6:G15)
C19: Hvis du du ønsker hjælp til ovenstående (og du ikke har
C20: ="ændret noget i området "&mycell(D6)&":"&mycell(D16)&"), så sæt et x her." -> ændret noget i området D6:D16), så sæt et x her.

Sheet 13
C2: Procentregning - 1
C4: Færdiggør tabellen herunder.
C6: Gammel pris | E6: 120 | F6: 385 | H6: 750 | K6: 455
C7: Prisnedsættelse | F7: 30 | I7: 45 | J7: 50
C8: I % | E8: 0.45 | G8: 0.18 | H8: 0.12 | I8: 0.1
C9: Ny pris | G9: 875 | J9: 925 | K9: 420
C12: Hvis du ønsker hjælp - sæt x her.
C15: Gammel pris | E15: 120 | F15: 385 | G15: 1067 | H15: 750 | I15: =45/0.1 -> 450 | J15: 975 | K15: 455
C16: Prisnedsættelse | E16: =E15-E18 -> 54 | F16: 30 | G16: =G15-G18 -> 192 | H16: =H15*12% -> 90 | I16: 45 | J16: 50 | K16: =K15-K18 -> 35
C17: I % | E17: 0.45 | F17: =F16/F15 -> 0.07792207792 | G17: 0.18 | H17: 0.12 | I17: 0.1 | J17: =J16/J15 -> 0.05128205128 | K17: =K16/K15 -> 0.07692307692
C18: Ny pris | E18: =120*(1-45%) -> 66 | F18: =F15-F16 -> 355 | G18: 875 | H18: =H15-H16 -> 660 | I18: =I15-I16 -> 405 | J18: 925 | K18: 420
C20: Med følgende symboler:
D22: N = Ny pris
D23: G = Gammel pris
D24: dp = Prisnedsættelse
D25: (dp/G)*100 = Prisnedsættelse i procent
C27: Kan du bruge følgende formel: N = G - dp
C29: I det første tilfælde altså: N = 120 - dp, idet vi har fået opgivet at dp/G = 45%, dvs. at dp = 45%*G.
C30: Dermed har vi, at N = 120- dp medfører at N =120 - 45%*120 = 120 - 54 = 66.

Sheet 14
C2: Procentregning - 2
C4: Færdiggør nedenstående oversigt.
D6: =CHAR(COLUMN()+64) -> D | E6: =CHAR(COLUMN()+64) -> E | F6: F | G6: G | H6: H | I6: I | J6: J
C7: =ROW() -> 7
C8: =ROW() -> 8 | E8: Salg af fødevarer
C9: =ROW() -> 9
C10: =ROW() -> 10 | F10: Salg | H10: Diffe- | I10: Diffe- | J10: Andel af | M10: =F10 -> Salg | O10: =H10 -> Diffe- | P10: Diffe- | Q10: Andel af
C11: =ROW() -> 11 | E11: Butik | F11: Faktisk | G11: Budget | H11: rence | I11: rence i % | J11: saml. salg | L11: =E11 -> Butik | M11: =F11 -> Faktisk | N11: =G11 -> Budget | O11: rence | P11: rence i % | Q11: saml. salg
C12: =ROW() -> 12 | E12: Bilka | F12: 880 | G12: 800 | L12: =E12 -> Bilka | M12: =F12 -> 880 | N12: =G12 -> 800 | O12: =M12-N12 -> 80 | P12: =O12/N12 -> 0.1 | Q12: =M12/$M$19 -> 0.3181489516
C13: =ROW() -> 13 | E13: Brugsen | F13: 589 | G13: 500 | L13: =E13 -> Brugsen | M13: =F13 -> 589 | N13: =G13 -> 500 | O13: =M13-N13 -> 89 | P13: =O13/N13 -> 0.178 | Q13: =M13/$M$19 -> 0.2129428778
C14: =ROW() -> 14 | E14: Aldi | F14: 182 | G14: 210 | L14: Aldi | M14: 182 | N14: 210 | O14: -28 | P14: -0.1333333333 | Q14: 0.06579898771
C15: =ROW() -> 15 | E15: Netto | F15: 203 | G15: 185 | L15: Netto | M15: 203 | N15: 185 | O15: 18 | P15: 0.0972972973 | Q15: 0.0733911786
C16: =ROW() -> 16 | E16: Kvickly | F16: 243 | G16: 280 | L16: Kvickly | M16: 243 | N16: 280 | O16: -37 | P16: -0.1321428571 | Q16: 0.08785249458
C17: =ROW() -> 17 | E17: Favør | F17: 254 | G17: 300 | L17: Favør | M17: 254 | N17: 300 | O17: -46 | P17: -0.1533333333 | Q17: 0.09182935647
C18: =ROW() -> 18 | E18: Irma | F18: 415 | G18: 350 | L18: Irma | M18: 415 | N18: 350 | O18: 65 | P18: 0.1857142857 | Q18: 0.1500361533
C19: =ROW() -> 19 | E19: I alt | L19: I alt | M19: =SUM(M12:M18) -> 2766 | N19: =SUM(N12:N18) -> 2625 | O19: =SUM(O12:O18) -> 141 | P19: 0.05371428571 | Q19: 1
C20: =ROW() -> 20
C21: =ROW() -> 21
C22: =ROW() -> 22 | E22: Hvis du ønsker hjælp - sæt x her.

Sheet 15
C2: Procentregning - 3 | E2: Forældet
C4: Udregn procent af total og procentvis ændring. Indsæt relevante formler i de grå celler.
D6: =CHAR(COLUMN()+64) -> D | E6: E | F6: F | G6: G | H6: H | I6: I | J6: J
C7: =ROW() -> 7
C8: =ROW() -> 8 | F8: Valg 2007 | I8: Valg 2005
C9: =ROW() -> 9 | D9: Parti | E9: Liste | F9: Afgivne stemmer | G9: % af stemmer | H9: % ændring i f.t. 2005 | I9: Afgivne stemmer | J9: % af stemmer
C10: =ROW() -> 10
C11: =ROW() -> 11 | D11: Socialdemokratiet | E11: A | F11: 881037 | I11: 867349 | K11: 1 | L11: Indsæt relevante formler i de blågrå celler.
C12: =ROW() -> 12 | D12: Det Radikale Venstre | E12: B | F12: 177161 | I12: 308212 | K12: 2 | L12: Formater celler med procentudregninger som procent med én decimal.
C13: =ROW() -> 13 | D13: Konservative Folkeparti | E13: C | F13: 359404 | I13: 344886 | K13: 3 | L13: Fremstil et cirkeldiagram der viser de enkelte partiers procentdel af afgivne antal
C14: =ROW() -> 14 | D14: Centrum Demokraterne | E14: D | F14: 0 | I14: 33880 | L14: stemmer.
C15: =ROW() -> 15 | D15: Socialistisk Folkeparti | E15: F | F15: 450975 | I15: 201047
C16: =ROW() -> 16 | D16: Dansk Folkeparti | E16: O | F16: 479532 | I16: 444947
C17: =ROW() -> 17 | D17: Kristendemokraterne | E17: K | F17: 30013 | I17: 58071
C18: =ROW() -> 18 | D18: Venstre | E18: V | F18: 908472 | I18: 974636 | L18: Hvis du ønsker hjælp til denne opgave, så gør følgende:
C19: =ROW() -> 19 | D19: Enhedslisten | E19: Ø | F19: 74982 | I19: 114123
C20: =ROW() -> 20 | D20: Ny Alliance | E20: Y | F20: 97295 | I20: 0 | L20: Tryk på Formater (på båndet), herefter på Skjul og vis og til sidst,
C21: =ROW() -> 21 | D21: Minoritetspartiet | E21: M | F21: 0 | I21: 8850 | L21: Vis ark. Markér 15.1 og tryk på OK.
C22: =ROW() -> 22 | D22: Uden for partierne | F22: 549 | I22: 1211
C23: =ROW() -> 23 | D23: Blanke stemmer | F23: 15738 | I23: 19478
C24: =ROW() -> 24 | D24: Andre ugyldige stemmer | F24: 8375 | I24: 7870
C25: =ROW() -> 25 | L25: Hvis du har lyst, kan du prøve at gå på Internettet og finde de afgivne
C26: =ROW() -> 26 | D26: Stemmeberettigede | F26: 4022849 | I26: 4003616 | L26: stemmer mv. ved det nyligt afholdte folketingsvalg. Flyt 2007-tallene
C27: =ROW() -> 27 | D27: Afgivne stemmer | I27: =SUM(I11:I24) -> 3384560 | L27: til kolonne I og indsæt 2011-tallene i kolonne F. Husk at tilrette
C28: =ROW() -> 28 | L28: overskrifterne med årstal.
C29: =ROW() -> 29 | D29: Valgdeltagelse

Sheet 15.1 (hidden)
C2: Procentregning - 3
C4: Udregn procent af total og procentvis ændring. Indsæt relevante formler i de grå celler.
D6: =CHAR(COLUMN()+64) -> D | E6: E | F6: F | G6: G | H6: H | I6: I | J6: J
C7: =ROW() -> 7
C8: =ROW() -> 8 | F8: Valg 2007 | I8: Valg 2005
C9: =ROW() -> 9 | D9: Parti | E9: Liste | F9: Afgivne stemmer | G9: % af stemmer | H9: % ændring i f.t. 2005 | I9: Afgivne stemmer | J9: % af stemmer
C10: =ROW() -> 10
C11: =ROW() -> 11 | D11: Socialdemokratiet | E11: A | F11: 881037 | G11: =F11/$F$27 -> 0.2529147851 | H11: =IFERROR((F11-I11)/I11,"") -> 0.01578142132 | I11: 867349 | J11: =I11/$F$27 -> 0.2489854409
C12: =ROW() -> 12 | D12: Det Radikale Venstre | E12: B | F12: 177161 | G12: =F12/$F$27 -> 0.05085670209 | H12: =IFERROR((F12-I12)/I12,"") -> -0.4251975913 | I12: 308212 | J12: =I12/$F$27 -> 0.08847684233
C13: =ROW() -> 13 | D13: Konservative Folkeparti | E13: C | F13: 359404 | G13: 0.1031722679 | H13: 0.0420950691 | I13: 344886 | J13: 0.09900465992
C14: =ROW() -> 14 | D14: Centrum Demokraterne | E14: D | F14: 0 | G14: 0 | H14: -1 | I14: 33880 | J14: 0.009725758303
C15: =ROW() -> 15 | D15: Socialistisk Folkeparti | E15: F | F15: 450975 | G15: 0.1294590865 | H15: 1.243132203 | I15: 201047 | J15: 0.05771353393
C16: =ROW() -> 16 | D16: Dansk Folkeparti | E16: O | F16: 479532 | G16: 0.1376567984 | H16: 0.07772835866 | I16: 444947 | J16: 0.1277286594
C17: =ROW() -> 17 | D17: Kristendemokraterne | E17: K | F17: 30013 | G17: 0.008615678393 | H17: -0.4831671574 | I17: 58071 | J17: 0.01667014494
C18: =ROW() -> 18 | D18: Venstre | E18: V | F18: 908472 | G18: 0.2607904102 | H18: -0.06788585687 | I18: 974636 | J18: 0.2797837712
C19: =ROW() -> 19 | D19: Enhedslisten | E19: Ø | F19: 74982 | G19: 0.02152469921 | H19: -0.3429720565 | I19: 114123 | J19: 0.03276070587
C20: =ROW() -> 20 | D20: Ny Alliance | E20: Y | F20: 97295 | G20: 0.02792997798 | I20: 0 | J20: 0
C21: =ROW() -> 21 | D21: Minoritetspartiet | E21: M | F21: 0 | G21: 0 | H21: -1 | I21: 8850 | J21: 0.002540524232
C22: =ROW() -> 22 | D22: Uden for partierne | F22: 549 | G22: 0.0001575986219 | H22: -0.5466556565 | I22: 1211 | J22: 0.0003476355757
C23: =ROW() -> 23 | D23: Blanke stemmer | F23: 15738 | G23: 0.00451782716 | H23: -0.1920115002 | I23: 19478 | J23: 0.00559144983
C24: =ROW() -> 24 | D24: Andre ugyldige stemmer | F24: 8375 | G24: 0.002404168412 | H24: 0.06416772554 | I24: 7870 | J24: 0.002259200645
C25: =ROW() -> 25
C26: =ROW() -> 26 | D26: Stemmeberettigede | F26: 4022849 | I26: 4003616
C27: =ROW() -> 27 | D27: Afgivne stemmer | F27: =SUM(F11:F24) -> 3483533 | G27: =F27/$F$27 -> 1 | I27: =SUM(I11:I24) -> 3384560 | J27: =I27/$F$27 -> 0.9715883271
C28: =ROW() -> 28
C29: =ROW() -> 29 | D29: Valgdeltagelse | F29: =F27/F26 -> 0.8659368025 | I29: =I27/I26 -> 0.8453757803
D37: =CHAR(COLUMN()+64) -> D | E37: E | F37: F | G37: G | H37: H | I37: I | J37: J
C38: =ROW() -> 38
C39: =ROW() -> 39 | F39: Valg 2007 | I39: Valg 2005
C40: =ROW() -> 40 | D40: Parti | E40: Liste | F40: Afgivne stemmer | G40: % af stemmer | I40: Afgivne stemmer | J40: % af stemmer
C41: =ROW() -> 41
C42: =ROW() -> 42 | D42: Socialdemokratiet | E42: A | F42: 881037 | G42: =F42/$F$51 -> 0.2569476485 | I42: 867349 | J42: =I42/$F$27 -> 0.2489854409
C43: =ROW() -> 43 | D43: Det Radikale Venstre | E43: B | F43: 177161 | G43: =F43/$F$51 -> 0.05166763978 | I43: 308212 | J43: =I43/$F$27 -> 0.08847684233
C44: =ROW() -> 44 | D44: Konservative Folkeparti | E44: C | F44: 359404 | G44: 0.1048174057 | I44: 344886 | J44: 0.09900465992
C45: =ROW() -> 45 | D45: Socialistisk Folkeparti | E45: F | F45: 450975 | G45: 0.1315233818 | I45: 201047 | J45: 0.05771353393
C46: =ROW() -> 46 | D46: Dansk Folkeparti | E46: O | F46: 479532 | G46: 0.1398518107 | I46: 444947 | J46: 0.1277286594
C47: =ROW() -> 47 | D47: Venstre | E47: V | F47: 908472 | G47: 0.2649488547 | I47: 974636 | J47: 0.2797837712
C48: =ROW() -> 48 | D48: Enhedslisten | E48: Ø | F48: 74982 | G48: 0.02186792221 | I48: 114123 | J48: 0.03276070587
C49: =ROW() -> 49 | D49: Ny Alliance | E49: Y | F49: 97295 | G49: 0.02837533663 | I49: 0 | J49: 0
C50: =ROW() -> 50
C51: =ROW() -> 51 | D51: Afgivne stemmer | F51: =SUM(F42:F49) -> 3428858 | G51: =SUM(G42:G49) -> 1 | I51: =SUM(I42:I49) -> 3255200 | J51: =SUM(J42:J49) -> 0.9344536136

Sheet 16
C2: Salg af bluser og bukser
C4: 1 | D4: Beregn salg af bluser pr. dag i kolonne G..
C5: 2 | D5: Beregn salg af bukser pr. dag i kolonne J.
C6: 3 | D6: Beregner salg i alt pr. dag (= salg af bluser + salg af bukser) i kolonne K.
C7: 4 | D7: Lav totaler der viser solgt antal og salg for alle dagene.
C9: Alle salgsbeløb formateres med nul decimaler og tusindadskiller. Sørg for at over-
C10: skrifterne "Bluser" og "Bukser" er centreret over de tre relevante kolonner uden
C11: at du gør brug af "Flet og centrer".
E13: Bluser | H13: Bukser
C14: Dato | E14: Solgt antal | F14: Salgspris pr. stk. | H14: Solgt antal | I14: Salgspris pr. stk.
C15: =TODAY()-14 -> 2023-04-14 | E15: 16 | F15: 300 | H15: 10 | I15: 500
C16: =C15+1 -> 2023-04-15 | E16: 12 | F16: 300 | H16: 10 | I16: 500
C17: =C16+1 -> 2023-04-16 | E17: 12 | F17: 300 | H17: 11 | I17: 500
C18: =C17+1 -> 2023-04-17 | E18: 15 | F18: 300 | H18: 15 | I18: 500
C21: Hvis du ønsker hjælp - sæt x her.
E24: Bluser | H24: Bukser | K24: I alt
C25: Dato | E25: Solgt antal | F25: Salgspris pr. stk. | G25: Bluser i kroner | H25: Solgt antal | I25: Salgspris pr. stk. | J25: Bukser i kroner | K25: Salg i kroner
C26: =TODAY()-14 -> 2023-04-14 | E26: 16 | F26: 300 | G26: =E26*F26 -> 4800 | H26: 10 | I26: 500 | J26: =H26*I26 -> 5000 | K26: =G26+J26 -> 9800
C27: =C26+1 -> 2023-04-15 | E27: 12 | F27: 300 | G27: =E27*F27 -> 3600 | H27: 10 | I27: 500 | J27: =H27*I27 -> 5000 | K27: =G27+J27 -> 8600
C28: =C27+1 -> 2023-04-16 | E28: 12 | F28: 300 | G28: =E28*F28 -> 3600 | H28: 11 | I28: 500 | J28: =H28*I28 -> 5500 | K28: =G28+J28 -> 9100
C29: =C28+1 -> 2023-04-17 | E29: 15 | F29: 300 | G29: =E29*F29 -> 4500 | H29: 15 | I29: 500 | J29: =H29*I29 -> 7500 | K29: =G29+J29 -> 12000
C30: I alt | E30: =SUM(E26:E29) -> 55 | F30: 300 | G30: =SUM(G26:G29) -> 16500 | H30: =SUM(H26:H29) -> 46 | I30: 500 | J30: =SUM(J26:J29) -> 23000 | K30: =G30+J30 -> 39500

Sheet 17
C2: Budget på månedsbasis
C4: 1 | D4: Opstil et budget for månederne januar til december under hensyntagen til nedenstående | M4: Varesalg | N4: 230000
D5: ="forudsætninger samt den forudsætning, at Faste omkostninger udgør kr. "&TEXT(N6,"#.##0")&" pr." -> forudsætninger samt den forudsætning, at Faste omkostninger udgør kr. 9.500 pr. | M5: VO | N5: 0.45
D6: ="måned med undtagelse af december, hvor de udgør "&TEXT(N7,"#.##0")&" kr." -> måned med undtagelse af december, hvor de udgør 12.000 kr. | M6: FO | N6: 9500
M7: FO, Dec | N7: 12000
C8: 2 | D8: Udregn manglende årstotaler.
D10: =CHAR(COLUMN()+64) -> D | E10: =CHAR(COLUMN()+64) -> E | F10: =CHAR(COLUMN()+64) -> F | G10: =CHAR(COLUMN()+64) -> G | H10: =CHAR(COLUMN()+64) -> H | I10: I | J10: J | K10: K | L10: L | M10: M | N10: N | O10: O | P10: P | Q10: Q
C11: =ROW() -> 11 | E11: Året i alt | F11: Jan | G11: Feb | H11: Mar | I11: Apr | J11: Maj | K11: Jun | L11: Jul | M11: Aug | N11: Sep | O11: Okt | P11: Nov | Q11: Dec
C12: =ROW() -> 12 | D12: Salgsfordeling | F12: 0.02 | G12: 0.03 | H12: 0.05 | I12: 0.1 | J12: 0.11 | K12: 0.12 | L12: 0.13 | M12: 0.14 | N12: 0.15 | O12: 0.05 | P12: 0.05 | Q12: 0.05
C13: =ROW() -> 13 | D13: Varesalg | E13: 230000
C14: =ROW() -> 14 | D14: Variable omk. i % af salg | E14: 0.45
C15: =ROW() -> 15 | D15: Variable omkostninger
C16: =ROW() -> 16 | D16: Dækningsbidrag
C17: =ROW() -> 17 | D17: Faste omkostninger
C18: =ROW() -> 18 | D18: Result før skat
C20: Hvis du ønsker hjælp - sæt x her.
D22: =CHAR(COLUMN()+64) -> D | E22: =CHAR(COLUMN()+64) -> E | F22: =CHAR(COLUMN()+64) -> F | G22: =CHAR(COLUMN()+64) -> G | H22: =CHAR(COLUMN()+64) -> H | I22: I | J22: J | K22: K | L22: L | M22: M | N22: N | O22: O | P22: P | Q22: Q
C23: =ROW() -> 23 | E23: Året i alt | F23: Jan | G23: Feb | H23: Mar | I23: Apr | J23: Maj | K23: Jun | L23: Jul | M23: Aug | N23: Sep | O23: Okt | P23: Nov | Q23: Dec
C24: =ROW() -> 24 | D24: Salgsfordeling | F24: 0.02 | G24: 0.03 | H24: 0.05 | I24: 0.1 | J24: 0.11 | K24: 0.12 | L24: 0.13 | M24: 0.14 | N24: 0.15 | O24: 0.05 | P24: 0.05 | Q24: 0.05
C25: =ROW() -> 25 | D25: Varesalg | E25: =SUM(F25:Q25) -> 230000 | F25: =$N$4*F24 -> 4600 | G25: =$N$4*G24 -> 6900 | H25: 11500 | I25: 23000 | J25: 25300 | K25: 27600 | L25: 29900 | M25: 32200 | N25: 34500 | O25: 11500 | P25: 11500 | Q25: 11500
C26: =ROW() -> 26 | D26: Variable omk. i % af salg | F26: =N5 -> 0.45 | G26: =F26 -> 0.45 | H26: 0.45 | I26: 0.45 | J26: 0.45 | K26: 0.45 | L26: 0.45 | M26: 0.45 | N26: 0.45 | O26: 0.45 | P26: 0.45 | Q26: 0.45
C27: =ROW() -> 27 | D27: Variable omkostninger | E27: =SUM(F27:Q27) -> 103500 | F27: =F25*F26 -> 2070 | G27: =G25*G26 -> 3105 | H27: 5175 | I27: 10350 | J27: 11385 | K27: 12420 | L27: 13455 | M27: 14490 | N27: 15525 | O27: 5175 | P27: 5175 | Q27: 5175
C28: =ROW() -> 28 | D28: Dækningsbidrag | E28: =SUM(F28:Q28) -> 126500 | F28: =F25-F27 -> 2530 | G28: =G25-G27 -> 3795 | H28: 6325 | I28: 12650 | J28: 13915 | K28: 15180 | L28: 16445 | M28: 17710 | N28: 18975 | O28: 6325 | P28: 6325 | Q28: 6325
C29: =ROW() -> 29 | D29: Faste omkostninger | E29: =SUM(F29:Q29) -> 116500 | F29: =$N$6 -> 9500 | G29: 9500 | H29: 9500 | I29: 9500 | J29: 9500 | K29: 9500 | L29: 9500 | M29: 9500 | N29: 9500 | O29: 9500 | P29: 9500 | Q29: =N7 -> 12000
C30: =ROW() -> 30 | D30: Result før skat | E30: =SUM(F30:Q30) -> 10000 | F30: =F28-F29 -> -6970 | G30: =G28-G29 -> -5705 | H30: -3175 | I30: 3150 | J30: 4415 | K30: 5680 | L30: 6945 | M30: 8210 | N30: 9475 | O30: -3175 | P30: -3175 | Q30: -5675

Sheet 18
C2: Sofies budget | E2: Forældet
C4: Sofie Hansen er netop flyttet ind i en ny ungdomsbolig, og hun skal selv betale for sin uddannelse. | M4: Sæt x her hvis du
C5: Hun har allerede fået tilsagn om at kunne få S.U., men hun har også erkendt, at det er nødvendigt at | M5: ønsker hjælp.
C6: arbejde ved siden af, hvis hun skal få råd til alt det, hun gerne vil. Derfor har hun fået et fritidsjob i det
C7: lokale supermarked. Her kan hun arbejde lige så mange timer, som hun ønsker. Sofie regner med,
C8: at hun vil have følgende indbetalinger og udbetalinger:
D10: =CHAR(COLUMN()+64) -> D | E10: E | F10: F | G10: G | H10: H | I10: I | L10: =SUBSTITUTE(ADDRESS(1,COLUMN(),4),"1","") -> L | M10: M | N10: N | O10: O | P10: P | Q10: Q
C11: =ROW() -> 11 | D11: Sofies budget | L11: Sofies budget
C12: =ROW() -> 12 | D12: Indbetalinger: | L12: Indbetalinger:
C13: =ROW() -> 13 | D13: Timeløn i supermarked | E13: 111 | F13: pr. time | L13: Timeløn i supermarked | M13: =E13 -> 111 | N13: pr. time
C14: =ROW() -> 14 | D14: S.U. | E14: 3320 | F14: hver måned | L14: S.U. | M14: =E14 -> 3320 | N14: hver måned
C15: =ROW() -> 15
C16: =ROW() -> 16 | E16: Januar | F16: Februar | G16: Marts | H16: April | I16: Maj | M16: Januar | N16: Februar | O16: Marts | P16: April | Q16: Maj
C17: =ROW() -> 17 | D17: Indbetalinger: | L17: Nødvendige antal timer i supermarked | M17: =M18/$E$13 -> 25.84684685 | N17: =N18/$E$13 -> 26.72072072 | O17: =O18/$E$13 -> 23.47747748 | P17: =P18/$E$13 -> 29.09009009 | Q17: =Q18/$E$13 -> 23.47747748
C18: =ROW() -> 18 | L18: Løn i supermarked | M18: =M30-M19 -> 2869 | N18: =N30-N19 -> 2966 | O18: =O30-O19 -> 2606 | P18: =P30-P19 -> 3229 | Q18: =Q30-Q19 -> 2606
C19: =ROW() -> 19 | L19: S.U. | M19: =$M$14 -> 3320 | N19: =$M$14 -> 3320 | O19: =$M$14 -> 3320 | P19: =$M$14 -> 3320 | Q19: =$M$14 -> 3320
C20: =ROW() -> 20
C21: =ROW() -> 21 | D21: Udbetalinger: | L21: Udbetalinger:
C22: =ROW() -> 22 | D22: Husleje | E22: 2022 | F22: 2022 | G22: 2022 | H22: 2022 | I22: 2022 | L22: Husleje | M22: =E22 -> 2022 | N22: 2022 | O22: 2022 | P22: 2022 | Q22: 2022
C23: =ROW() -> 23 | D23: Transport | E23: 504 | F23: 504 | G23: 504 | H23: 504 | I23: 504 | L23: Transport | M23: 504 | N23: 504 | O23: 504 | P23: 504 | Q23: 504
C24: =ROW() -> 24 | D24: Forsikringer | E24: 263 | H24: 263 | L24: Forsikringer | M24: 263 | N24: 0 | O24: 0 | P24: 263 | Q24: 0
C25: =ROW() -> 25 | D25: Sport | F25: 360 | H25: 360 | L25: Sport | M25: 0 | N25: 360 | O25: 0 | P25: 360 | Q25: 0
C26: =ROW() -> 26 | D26: Telefon | E26: 600 | F26: 600 | G26: 600 | H26: 600 | I26: 600 | L26: Telefon | M26: 600 | N26: 600 | O26: 600 | P26: 600 | Q26: 600
C27: =ROW() -> 27 | D27: Tøj | E27: 600 | F27: 600 | G27: 600 | H27: 600 | I27: 600 | L27: Tøj | M27: 600 | N27: 600 | O27: 600 | P27: 600 | Q27: 600
C28: =ROW() -> 28 | D28: Mad m.v. | E28: 1200 | F28: 1200 | G28: 1200 | H28: 1200 | I28: 1200 | L28: Mad m.v. | M28: 1200 | N28: 1200 | O28: 1200 | P28: 1200 | Q28: 1200
C29: =ROW() -> 29 | D29: Fester m.v. | E29: 1000 | F29: 1000 | G29: 1000 | H29: 1000 | I29: 1000 | L29: Fester m.v. | M29: 1000 | N29: 1000 | O29: 1000 | P29: 1000 | Q29: 1000
C30: =ROW() -> 30 | D30: I alt | L30: I alt | M30: =SUM(M22:M29) -> 6189 | N30: =SUM(N22:N29) -> 6286 | O30: =SUM(O22:O29) -> 5926 | P30: =SUM(P22:P29) -> 6549 | Q30: =SUM(Q22:Q29) -> 5926
C31: =ROW() -> 31 | L31: Resultat | M31: =M18+M19-M30 -> 0 | N31: =N18+N19-N30 -> 0 | O31: =O18+O19-O30 -> 0 | P31: =P18+P19-P30 -> 0 | Q31: =Q18+Q19-Q30 -> 0
C33: Færdiggør budgettet, så det fremgår, hvor mange timer Sofie skal arbejde på sit fritidsjob hver
C34: måned, hvis hun skal kunne klare alle de forventede udbetalinger i måneden.
C36: ="Du kan gå til celle "&mycell(M8)&", hvis du ønsker hjælp." -> Du kan gå til celle M8, hvis du ønsker hjælp.

Sheet 19
C2: Lav en faktura
C4: ="Lav en faktura (start i celle "&mycell(J9)&") svarende til den, der er vist herunder." -> Lav en faktura (start i celle J9) svarende til den, der er vist herunder.
C5: Beløb i I alt kolonnen skal fremkomme ved hjælp af formler. Alt andet skal
C6: indtastes. “kr.” under Stykpris og I alt skal fremkomme via formatering.
J8: =CHAR(COLUMN()+64) -> J | K8: =CHAR(COLUMN()+64) -> K | L8: =CHAR(COLUMN()+64) -> L | M8: =CHAR(COLUMN()+64) -> M | N8: =CHAR(COLUMN()+64) -> N | P8: Ingen hjælp her.

Sheet 20
C2: Målsøgning
K3: Rhinens længde = R
C4: Du ved følgende: | K4: Volgas længde = V
C5: 1. | D5: Floden Volga er 2,651515 gange så lang som floden Rhinen. | K5: Donaus længde = D
C6: 2. | D6: Donau er 643 km kortere end Volga.
C7: 3. | D7: Gennemsnitslængden af de tre floder er 2.559 km | K7: 1. | L7: R = x
K8: 2. | L8: V = 2,65515*x
C9: Benyt Målsøgning til at finde længden af de tre floder. | K9: 3. | L9: D = V - 643
K10: 4. | L10: (R+V+D)/3 = 2559
C12: Rhinen | G12: 1320 | K12: I udtrykket 4. ganger vi med 3 på
C13: Volgas længde | G13: =2.651515*G12 -> 3499.9998 | K13: begge sider af lighedstegnet:
C14: Donaus længde | G14: =G13-643 -> 2856.9998 | I14: Hjælp?
C15: Gennemsnitslængden | G15: =AVERAGE(G12:G14) -> 2558.999867 | I15: Nej | K15: 5. | L15: R+V+D = 3*2559 = 7677
K16: Dette er ét udtryk for summen af
K17: de tre floders længde. Et andet
C18: Når du har løst opgaven kan du tjekke dit svar her: | K18: udtryk for det samme får vi ved
C19: https://lex.dk/.search?query=europas+l%C3%A6ngste+floder | K19: at lægge 1., 2. og 3. sammen.
K20: 6. | L20: R+V+D = x +2,65515*x +2,65515*x-643
L21: R+V+D = 6,3103*x - 642
C22: ="Bemærk, at hvis du aktiverer celle "&mycell(I15)&" får du mulighed for at vælge mellem ""Nej"" og ""Ja""." -> Bemærk, at hvis du aktiverer celle I15 får du mulighed for at vælge mellem "Nej" og "Ja". | K22: Ved at kombinere 5. og 6. får vi:
K23: 7. | L23: 7677 = 6,3103*x - 642
L24: 8319 = 6,3103*x
L25: x = 1318,3208
K26: Altså:
K27: R = x = 1318,3208
K28: V = 2,65515*x = 3500,3395
K29: D = V- 643 = 3500,3395 - 643 = 2857,3395

Sheet 21
C2: Målsøgning 2
C4: Der afholdes fest med spisning. Deltagerne skal selv betale. | K4: Spørgsmål
C5: Udgangspunktet er, at børn skal betale 50% af en voksenbillet. | K5: Hvad skal hver voksen betale, for at regnskabet lige akkurat
C6: Der er udgifter til indkøb af papirduge, engangsbestik | K6: balancerer (så indtægterne lige akkurat dækker udgifterne)?
C7: og engangsglas. Desuden skal der indkøbes hvid- og rødvin,
C8: danskvand samt sodavand og platter. | K8: Det viser sig, at der tilmelder sig 70 voksne og 50 børn. Der
K9: skal være 1 glas hvidvin til hver af de voksne samt ca. ½
C10: ="Lav en opstilling, begyndende i "&mycell(G13)&" svarende til opstillingen" -> Lav en opstilling, begyndende i G13 svarende til opstillingen | K10: flaske rødvin og 2 danskvand. Til børnene skal der være
C11: herunder. | K11: 3 sodavand. Hver deltager skal have en platte.
K13: Prøv at opstille et budget, der ikke giver underskud.
K15: Det overvejes at børnene skal betale 75 % af voksenprisen.
K16: Til gengæld skal der være 4 sodavand til hvert barn. Prøv
K17: at rette budgettet ind.
K19: Fra række 100 og nedefter kan du se et løsningsforslag, men
K20: prøv nu først på egen hånd.
G100: Budget for en festaften
G102: Indtægter
H104: Antal | I104: Stykpris | J104: I alt
G106: Voksne | H106: 60 | I106: 80 | J106: =H106*I106 -> 4800
G107: Børn | H107: 46 | I107: =I106*50% -> 40 | J107: =H107*I107 -> 1840
I109: Indtægter i alt | J109: =SUM(J106:J107) -> 6640
G112: Udgifter
H114: Antal | I114: Stykpris | J114: I alt
G116: Papirduge mv. | J116: 400
G117: Flasker hvidvin | H117: 10 | I117: 43.85 | J117: =H117*I117 -> 438.5
G118: Flasker rødvin | H118: 25 | I118: 48.5 | J118: =H118*I118 -> 1212.5
G119: Danskvand | H119: =H106*2 -> 120 | I119: 2.5 | J119: =H119*I119 -> 300
G120: Sodavand | H120: 150 | I120: 2.85 | J120: =H120*I120 -> 427.5
G121: Platter | H121: =H106+H107 -> 106 | I121: 48.5 | J121: =H121*I121 -> 5141
I123: Udgifter i alt | J123: =SUM(J116:J122) -> 7919.5

Sheet 22
C2: Autosum
D5: =CHAR(COLUMN()+64) -> D | E5: =CHAR(COLUMN()+64) -> E | F5: ="Vælg "&mycell(E14)&" og tryk på Autsum-ikonet. Excel indsætter et ligheds-" -> Vælg E14 og tryk på Autsum-ikonet. Excel indsætter et ligheds-
C6: =ROW() -> 6 | F6: ="tegn og en SUM funktion og foreslår "&mycell(E7)&":"&mycell(E13)&" som det område" -> tegn og en SUM funktion og foreslår E7:E13 som det område
C7: =ROW() -> 7 | D7: Sverige | E7: 10 | F7: der skal summeres. Hvis området er korrekt så tryk på Autosum
C8: =ROW() -> 8 | D8: Norge | E8: 20 | F8: igen (eller "fluebenet til venstre for formelfeltet eller Enter) for
C9: =ROW() -> 9 | D9: Finland | E9: 30 | F9: at færdiggøre formlen.
C10: =ROW() -> 10 | D10: Holland | E10: 40
C11: =ROW() -> 11 | D11: Frankrig | E11: 50 | F11: Note: I stedet for at bruge Autosum ikonet kan du bruge føl-
C12: =ROW() -> 12 | D12: England | E12: 60 | F12: ="gende genvej: Alt+=. Prøv det i celle "&mycell(E14)&"." -> gende genvej: Alt+=. Prøv det i celle E14.
C13: =ROW() -> 13 | D13: Schweiz | E13: 70 | F13: (Alt+Shift+tryk på 0).
C14: =ROW() -> 14 | D14: I alt
D18: =CHAR(COLUMN()+64) -> D | E18: =CHAR(COLUMN()+64) -> E | F18: =CHAR(COLUMN()+64) -> F | G18: =CHAR(COLUMN()+64) -> G | H18: =CHAR(COLUMN()+64) -> H | K18: =CHAR(COLUMN()+64) -> K | L18: =CHAR(COLUMN()+64) -> L
C19: =ROW() -> 19 | E19: Produkt 1 | F19: Produkt 2 | G19: Produkt 3 | H19: I alt | K19: 1 | L19: 1
C20: =ROW() -> 20 | D20: Øst | E20: 40 | F20: 50 | G20: 100 | K20: 2 | L20: 2
C21: =ROW() -> 21 | D21: Vest | E21: 60 | F21: 50 | G21: 200 | K21: 3 | L21: 3
C22: =ROW() -> 22 | D22: Nord | E22: 30 | F22: 100 | G22: 300 | K22: 4 | L22: 4
C23: =ROW() -> 23 | D23: Syd | E23: 50 | F23: 200 | G23: 400 | K23: 5 | L23: 5
C24: =ROW() -> 24 | D24: I alt
C26: ="Marker "&mycell(E20)&":"&mycell(H24)&" (eller "&mycell(D19)&":"&mycell(H24)&") " -> Marker E20:H24 (eller D19:H24) | K26: ="Marker området "&mycell(K19)&":"&mycell(L23)&", klik" -> Marker området K19:L23, klik
C27: og tryk på AutoSum ikonet. | K27: ="på pil ned til højre for navne" -> på pil ned til højre for navne
C28: SUM-formler indsættes i ét trin. | K28: boksen, indtast "Data" og afslut
K29: med Enter.
K30: ="I celle "&mycell(L24)&" indtast følgende:" -> I celle L24 indtast følgende:
K31: =SUM(Data)
D34: =CHAR(COLUMN()+64) -> D | E34: =CHAR(COLUMN()+64) -> E | F34: F | G34: G | H34: H | J34: ="Vælg området "&mycell(D35)&":"&mycell(D39)&", hold Ctrl-tasten" -> Vælg området D35:D39, hold Ctrl-tasten
C35: =ROW() -> 35 | D35: 1 | F35: 6 | H35: 9 | J35: ="nede, vælg herefter området "&mycell(F35)&":"&mycell(F39)&"," -> nede, vælg herefter området F35:F39,
C36: =ROW() -> 36 | D36: 2 | F36: 7 | H36: 9 | J36: hold stadigvæk Ctrl-tasten nede og vælg
C37: =ROW() -> 37 | D37: 3 | F37: 8 | H37: 9 | J37: ="området "&mycell(H35)&":"&mycell(H39)&". Klik på pil ned til højre" -> området H35:H39. Klik på pil ned til højre
C38: =ROW() -> 38 | D38: 4 | F38: 9 | H38: 9 | J38: for navneboksen, indtast Data_2 og
C39: =ROW() -> 39 | D39: 5 | F39: 10 | H39: 9 | J39: afslut ved at trykke på Enter.
J41: I en tom celle indtaster du: =SUM(Data_2)

Sheet 23
C2: Autosum/Funktionsguide
C4: I denne opgave skal du prøve at bruge henholdsvis SUM-ikonet
C5: og Funktionsguiden til at oprette forskellige formler.
D7: =CHAR(COLUMN()+64) -> D | E7: =CHAR(COLUMN()+64) -> E | F7: =CHAR(COLUMN()+64) -> F | G7: =CHAR(COLUMN()+64) -> G
C8: =ROW() -> 8
C9: =ROW() -> 9 | F9: 650
C10: =ROW() -> 10 | F10: 50
C11: =ROW() -> 11 | F11: 1500
C12: =ROW() -> 12 | F12: -200
C13: =ROW() -> 13 | F13: 500
C14: =ROW() -> 14
C15: =ROW() -> 15 | E15: Sum
C16: =ROW() -> 16 | E16: Middel
C17: =ROW() -> 17 | E17: Maksimum
C18: =ROW() -> 18 | E18: Minimum
C20: 1 | D20: Brug SUM-ikonet til at oprette en formel i celle
D21: =mycell(F15)&" der udregner summen af tallene i" -> F15 der udregner summen af tallene i
D22: ="området "&mycell(F9)&":"&mycell(F13)&"." -> området F9:F13.
C24: 2 | D24: Brug SUM-ikonet (plus pil ned til højre for) til at
D25: ="indsætte funktioner i "&mycell(F16)&", "&mycell(F17)&" og "&mycell(F18)&" der" -> indsætte funktioner i F16, F17 og F18 der
D26: beregner henholdsvis gennemsnit, mindste værdi
D27: og største værdi.
C29: 3 | D29: Brug Funktionsguiden til at oprette tilsvarende
D30: ="formler i "&mycell(G15)&", "&mycell(G16)&", "&mycell(G17)&" og "&mycell(G18)&"." -> formler i G15, G16, G17 og G18.

Sheet 24
C2: SUM, MAKS, MIN og MIDDEL
C4: Brug funktionerne SUM, MAKS, MIN og MIDDEL til at færdiggøre nedenstående salgsstatistik.
D6: =CHAR(COLUMN()+64) -> D | E6: E | F6: F | G6: G | H6: H | I6: I | J6: J
C7: =ROW() -> 7
C8: =ROW() -> 8 | D8: Salgsstatistik | F8: Odense | G8: Århus | H8: København | I8: Ålborg
C9: =ROW() -> 9 | D9: =YEAR(TODAY())-1 -> 2022 | E9: Jan | F9: 6388 | G9: 7184 | H9: 13817 | I9: 4407 | J9: Totaler for alle byer
C10: =ROW() -> 10 | E10: Feb | F10: 6260 | G10: 7040 | H10: 13540 | I10: 4319
C11: =ROW() -> 11 | E11: Mar | F11: 6135 | G11: 6899 | H11: 13270 | I11: 4232
C12: =ROW() -> 12 | E12: Apr | F12: 6012 | G12: 6761 | H12: 13004 | I12: 4148
C13: =ROW() -> 13 | E13: Maj | F13: 4028 | G13: 4530 | H13: 8713 | I13: 2779
C14: =ROW() -> 14 | E14: Jun | F14: 2699 | G14: 3035 | H14: 5838 | I14: 1862
C15: =ROW() -> 15 | E15: Jul | F15: 1808 | G15: 2033 | H15: 3911 | I15: 1247
C16: =ROW() -> 16 | E16: Aug | F16: 3255 | G16: 3660 | H16: 7040 | I16: 2245
C17: =ROW() -> 17 | E17: Sep | F17: 5859 | G17: 6589 | H17: 12672 | I17: 4042
C18: =ROW() -> 18 | E18: Okt | F18: 5624 | G18: 6325 | H18: 12165 | I18: 3880
C19: =ROW() -> 19 | E19: nov | F19: 5399 | G19: 6072 | H19: 11679 | I19: 3725
C20: =ROW() -> 20 | E20: Dec | F20: 5183 | G20: 5829 | H20: 11212 | I20: 3576
C21: =ROW() -> 21 | E21: Samlet salg
C22: =ROW() -> 22 | E22: Største salg
C23: =ROW() -> 23 | E23: Mindste salg
C24: =ROW() -> 24 | E24: Gennemsn. salg

Sheet 25
C2: Resumé
C5: Hvad kan en celle indeholde | I5: Eksempler
G6: Tal | I6: 123
G7: Tekst | I7: Excel
G8: Logisk værdi | I8: TRUE
G9: Fejlværdi
G10: Matriks | I10: =RÆKKKE(1:10)
C13: Hvad karakteriserer en formel | G13: En formel starter altid med et lighedstegn.
C32: Referencetyper
C42: Operatorer | G42: Operatorer angiver den beregningstype, der skal udføres på en formels
G43: elementer. Se ark 5.
G45: Der findes en standardrækkefølge, som beregninger udføres i, men du
G46: kan ændre denne rækkefølge ved hjælp af parenteser.
G47: Se ark 9.
C49: Cirkeldiagram | G49: Se ark 15 (+ eventuelt ark 15.1)
C53: Målsøgning | G53: Målsøgning finder du ved at trykke på Data (på Båndet), herefter på
G54: ikonet "Hvad-hvis-analyse" og "Målsøgning".
G55: ="(Prøv eventuelt vælge ""Ja"" i valgboksen i celle "&mycell(I15) &" i ark 20)." -> (Prøv eventuelt vælge "Ja" i valgboksen i celle I15 i ark 20).
C59: Shortcuts | G59: Shortcuts1 findes på både dansk og engelsk. Det er sat op så det umiddel-
G60: bart kan udskrives.
G61: Shortcuts2 viser en række anvendelser.

Sheet Shortcuts1
G5: Microsoft Excel – Genveje
G8: NAVIGERING | J8: REDIGERING
G9: Celle A1 | H9: CTRL HOME | J9: Klip | K9: CTRL X
G10: Sidste celle med data | H10: CTRL END | J10: Kopier | K10: CTRL C
G11: Til begyndelsen af række | H11: HOME | J11: Sæt ind | K11: CTRL V
G12: Første indtastning i række | H12: CTRL ← | J12: Fortryde seneste handling | K12: CTRL Z
G13: Sidste indtastning i række | H13: CTRL → | J13: Annullere fortryd | K13: CTRL Y
G14: Første indtastning i kolonne | H14: CTRL ↑ | J14: Gentage seneste handling | K14: F4
G15: Sidste indtastning i kolonne | H15: CTRL ↓ | J15: Udfylde nedad | K15: CTRL D
G16: Foregående ark | H16: CTRL PGUP | J16: Udfylde til højre | K16: CTRL R
G17: Næste ark | H17: CTRL PGDN | J17: Udfylde område | K17: CTRL ENTER
G18: Gå til | H18: F5 | J18: Slette celleindhold | K18: DELETE
G20: VÆLGE CELLER | J20: KOLONNER OG RÆKKER
G21: Markere kolonnen | H21: CTRL SPACE | J21: Skjul række | K21: CTRL 9
G22: Mmarkere rækken | H22: SHIFT SPACE | J22: Vis række | K22: CTRL SHIFT 9
G23: Markere hele arket | H23: CTRL A | J23: Skjul kolonne | K23: CTRL 0
G24: Markere aktuelle område | H24: CTRL * | J24: Vis kolonne | K24: CTRL SHIFT 0
G25: Markere synlige celler | H25: ALT ; | J25: Indsæt kolonne/række | K25: CTRL +
G26: Celler med kommentarer | H26: CTRL SHIFT O | J26: Slet kolonne/række | K26: CTRL -
G28: CELLE FORMATERING | J28: FIL-KOMMANDOER
G29: Redigere aktive celle | H29: F2 | J29: Ny fil | K29: CTRL N
G30: Fed | H30: CTRL F | J30: Åbn fil | K30: CTRL O
G31: Kursiv | H31: CTRL K | J31: Udskriv | K31: CTRL P
G32: Formater celler dialogboks | H32: CTRL 1 | J32: Gem fil | K32: CTRL S
G33: Tilføj ydre kanter | H33: CTRL SHIFT & | J33: Gem som | K33: F12
G34: Fjern ydre kanter | H34: CTRL SHIFT - | J34: Luk fil | K34: CTRL F4
G36: TAL FORMATERING | J36: ANDRE KOMMANDOER
G37: Komma (2 decimaler) | H37: CTRL SHIFT ! | J37: Skifte, værdier og formler | K37: CTRL `
G38: Valuta (2 decimaler) | H38: CTRL SHIFT $ | J38: Indtaste datoen | K38: CTRL ;
G39: Procent (0 decimaler) | H39: CTRL SHIFT % | J39: Indtaste klokkeslæt | K39: CTRL :
G40: Dato (dd-mmm-åå) | H40: CTRL # | J40: Anvende autosum | K40: ALT =
J41: Indsæt nyt ark | K41: SHIFT F11
G44: Microsoft Excel – Shortcuts
G47: NAVIGATION KEYS | J47: EDIT COMMANDS
G48: Cell A1 | H48: CTRL HOME | J48: Cut | K48: CTRL X
G49: Last Cell With Data | H49: CTRL END | J49: Copy | K49: CTRL C
G50: Start of Row | H50: HOME | J50: Paste | K50: CTRL V
G51: First Entry in Row | H51: CTRL ← | J51: Undo last Command | K51: CTRL Z
G52: Last Entry in Row | H52: CTRL → | J52: Redo Last Command | K52: CTRL Y
G53: First Entry in Column | H53: CTRL ↑ | J53: Repeat Last command | K53: F4
G54: Last Entry in Column | H54: CTRL ↓ | J54: Fill Down | K54: CTRL D
G55: Previous Worksheet | H55: CTRL PGUP | J55: Fill Right | K55: CTRL R
G56: Next Worksheet | H56: CTRL PGDN | J56: Fill Range | K56: CTRL ENTER
G57: Go to | H57: F5 | J57: Clear Cell Contents | K57: DELETE
G59: SELECTING CELLS | J59: COLUMNS & ROWS
G60: Current Column | H60: CTRL SPACE | J60: Hide Row | K60: CTRL 9
G61: Current Row | H61: SHIFT SPACE | J61: Unhide Row | K61: CTRL SHIFT 9
G62: Entire Worksheet | H62: CTRL A | J62: Hide Column | K62: CTRL 0
G63: Current Range | H63: CTRL * | J63: Unhide Column | K63: CTRL SHIFT 0
G64: Visible Cells Only | H64: ALT ; | J64: Insert Column or Row | K64: CTRL +
G65: Cells Containing Comments | H65: CTRL SHIFT O | J65: Delete Column or Row | K65: CTRL -
G67: CELL FORMATTING | J67: FILE COMMANDS
G68: Edit Active Cell | H68: F2 | J68: New File | K68: CTRL N
G69: Bold | H69: CTRL B | J69: Open Existing File | K69: CTRL O
G70: Italics | H70: CTRL I | J70: Print Document | K70: CTRL P
G71: Format Cells Dialog | H71: CTRL 1 | J71: Save File | K71: CTRL S
G72: Add Outline Border | H72: CTRL SHIFT & | J72: Save As | K72: F12
G73: Remove Border | H73: CTRL SHIFT - | J73: Close File | K73: CTRL F4
G75: NUMBER FORMATTING | J75: OTHER COMMANDS
G76: Comma (2 decimals) | H76: CTRL SHIFT ! | J76: Toggle Value/Formula | K76: CTRL `
G77: Currency (2 decimals) | H77: CTRL SHIFT $ | J77: Insert Current Date | K77: CTRL ;
G78: Per cent (0 decimals) | H78: CTRL SHIFT % | J78: Insert Current Time | K78: CTRL :
G79: Date (dd-mmm-yy) | H79: CTRL # | J79: Apply AutoSum | K79: ALT =
J80: Insert New Worksheet | K80: SHIFT F11

Sheet Shortcuts2
F5: Genveje
F8: Vælg celleområde
F10: I tabellen herunder, prøv følgende:
F12: 1 | G12: Flytte fra top til bund | K12: Ctrl+Pil ned
F13: 2 | G13: Flytte fra bund til top | K13: Ctrl+Pil op
F14: 3 | G14: Flytte fra venstre til højre | K14: Ctrl+Pil til højre
F15: 4 | G15: Flytte fra højre til venstre | K15: Ctrl+Pil til venstre
F17: 1 | G17: 69 | H17: 81 | I17: 56 | J17: 57 | K17: 28 | L17: 45 | M17: 66 | N17: 19
F18: 2 | G18: 18 | H18: 30 | I18: 94 | J18: 80 | K18: 70 | L18: 77 | M18: 93 | N18: 77
F19: 3 | G19: 8 | H19: 37 | I19: 86 | J19: 62 | K19: 12 | L19: 89 | M19: 81 | N19: 44
F20: 4 | G20: 40 | H20: 95 | I20: 31 | J20: 67 | K20: 70 | L20: 42 | M20: 6 | N20: 45
F21: 5 | G21: 1 | H21: 13 | I21: 48 | J21: 78 | K21: 36 | L21: 60 | M21: 34 | N21: 52
F22: 6 | G22: 55 | H22: 45 | I22: 48 | J22: 4 | K22: 10 | L22: 70 | M22: 49 | N22: 36
F23: 7 | G23: 82 | H23: 3 | I23: 1 | J23: 32 | K23: 38 | L23: 81 | M23: 66 | N23: 100
F24: 8 | G24: 83 | H24: 14 | I24: 17 | J24: 87 | K24: 75 | L24: 15 | M24: 62 | N24: 39
F25: 9 | G25: 84 | H25: 63 | I25: 45 | J25: 74 | K25: 71 | L25: 76 | M25: 46 | N25: 13
F26: 10 | G26: 93 | H26: 6 | I26: 33 | J26: 86 | K26: 61 | L26: 4 | M26: 47 | N26: 38
F27: 11 | G27: 36 | H27: 94 | I27: 100 | J27: 95 | K27: 90 | L27: 77 | M27: 84 | N27: 12
F28: 12 | G28: 82 | H28: 92 | I28: 72 | J28: 51 | K28: 83 | L28: 81 | M28: 65 | N28: 52
F29: 13 | G29: 47 | H29: 98 | I29: 8 | J29: 17 | K29: 35 | L29: 14 | M29: 95 | N29: 13
F31: Prøv også følgende i tabellen oven for:
F33: 1 | G33: Lodret område fra top til bund | K33: Ctrl+Shif+Pil ned
F34: 2 | G34: Vandret område fra bund til top | K34: Ctrl+Shif+Pil op
F35: 3 | G35: Vandret område fra venstre til højre | K35: Ctrl+Shif+Pil til højre
F36: 4 | G36: Vandret område fra højre til venstre | K36: Ctrl+Shif+Pil til venstre
F37: 5. | G37: Det aktuelle område | K37: Ctrl+* (eller Ctrl+A)
F41: Første celle | I41: Tryk Ctrl+Home for at gå til A1 fra en hvilken som helst celle.
F43: Sidste celle | I43: For at finde den sidste celle i det brugte område i et ark, tryk
I44: Ctrl+End.
I46: Eksempel: Vælg et tomt ark, gå til for eksempel celle F1000. Ind-
I47: tast et eller andet i cellen, tryk Enter og slet det herefter igen.
I48: Tryk på Ctrl+Home for at gå til A1. Prøv nu at trykke Ctrl+End. Du
I49: vil se, at sidste celle er F1000.
F51: Gå til | I51: Hvis du ønsker at gå til for eksempel celle K1487, så aktiver nav-
I52: nefeltet(feltet helt til venstre for formelfeltet), skriv K1487 og
I53: tryk på Enter. Husk at du let kommer tilbage til A1 ved at trykke
I54: Ctrl+Home.
F57: Marker hel kolonne | I57: Ctrl+Space
F59: Marker hel række | I59: Shift+Space
F61: Marker hele arket | I61: Ctrl+A
F64: Næste ark | I64: Ctrl+PgDn
F66: Foregående ark | I66: Ctrl+PgUp
F68: Til venstre for arkfanerne på den vandrette rullepanel er der fire små pile. Placer musemar-
F69: køren over en af pilene og højreklik. Her kan du hurtigt vælge et bestemt ark, specielt hvis der
F70: er mange.
F73: Indsæt en række | I73: Vælg først en række (Shift+Space)
I74: Tryk Ctrl + (Ctrl og plus tasten)
F76: Slette en række | I76: Vælg en række (Shift+Space)
I77: Tryk Ctrl - (Ctrl og minus tasten)
I79: Prøv det neden for ved at vælge rækken med rød farve og tryk
I80: Ctrl + (Ctrl og + tasten) tre gange.
I81: Tryk herefter Ctrl - (Ctrl og minus tasten) tre gange.
F87: Indsæt en kolonne | I87: Vælg først en kolonne (Ctrl+Space)
I88: Tryk Ctrl + (Ctrl og plus tasten)
F90: Slette en kolonne | I90: Vælg en kolonne (Ctrl+Space)
I91: Tryk Ctrl - (Ctrl og minus tasten)
F96: Fyldhåndtaget
G98: =CHAR(COLUMN()+64) -> G
F99: =ROW() -> 99 | G99: 1 | H99: ="Vælg celle "&mycell(G99)&" og træk fyldhåndtaget til og med celle "&mycell(G107)&"." -> Vælg celle G99 og træk fyldhåndtaget til og med celle G107.
F100: =ROW() -> 100 | H100: Tryk på Ctrl+Z (alternativt: Fortryd-ikonet på hovedmenuen).
F101: =ROW() -> 101
F102: =ROW() -> 102 | H102: ="Vælg igen celle "&mycell(G99)&" og dobbeltklik på fyldhåndtaget." -> Vælg igen celle G99 og dobbeltklik på fyldhåndtaget.
F103: =ROW() -> 103 | H103: Tryk på Ctrl+Z.
F104: =ROW() -> 104
F105: =ROW() -> 105 | H105: ="Vælg igen celle "&mycell(G99)&" hold Ctrl-tasten nede og træk fyldhåndtaget" -> Vælg igen celle G99 hold Ctrl-tasten nede og træk fyldhåndtaget
F106: =ROW() -> 106 | H106: ="til og med celle "&mycell(G107)&"." -> til og med celle G107.
F107: =ROW() -> 107
F112: Kopier, klip, indsæt
F114: Kopier | I114: Ctrl+C
F116: Klip | I116: Ctrl+X
F118: Indsæt, med mulighed for
F119: at gentage operationen | I119: Ctrl+V
F121: Indsæt, uden mulighed for
F122: at gentage operationen | I122: Enter
F124: Udfyld nedad | I124: Ctrl+D
F126: Udfyld til højre | I126: Ctrl+R
F128: Udfyld område | I128: Ctrl+Enter
G131: =CHAR(COLUMN()+64) -> G | H131: =CHAR(COLUMN()+64) -> H
F132: =ROW() -> 132 | G132: ABC | I132: ="Vælg "&mycell(G132)&" og tryk Ctrl+C, vælg celle "&mycell(H132)&" og tryk Enter." -> Vælg G132 og tryk Ctrl+C, vælg celle H132 og tryk Enter.
F133: =ROW() -> 133 | G133: JKL | I133: ="Vælg "&mycell(G133)&" (Ctrl+C) og indsæt (Ctrl+V) til "&mycell(H134)&", derefter til " -> Vælg G133 (Ctrl+C) og indsæt (Ctrl+V) til H134, derefter til
F134: =ROW() -> 134 | I134: =mycell(G135)&" and "&mycell(H136)&"." -> G135 and H136.
F135: =ROW() -> 135
F136: =ROW() -> 136
F137: =ROW() -> 137
F138: =ROW() -> 138 | G138: pqr | I138: ="Vælg "&mycell(G138)&" tryk Ctrl+X, flyt én celle til højre og tryk" -> Vælg G138 tryk Ctrl+X, flyt én celle til højre og tryk
F139: =ROW() -> 139 | I139: Ctrl+V.
F140: =ROW() -> 140
F141: =ROW() -> 141 | I141: ="Vælg området "&mycell(G141)&":"&mycell(H146)&" og indtast FOF, hold Ctrl-tasten nede." -> Vælg området G141:H146 og indtast FOF, hold Ctrl-tasten nede.
F142: =ROW() -> 142 | I142: og tryk på Enter.
F143: =ROW() -> 143
F144: =ROW() -> 144
F145: =ROW() -> 145
F146: =ROW() -> 146
F147: =ROW() -> 147
F148: =ROW() -> 148 | G148: =2+2 -> 4 | I148: ="Vælg celle "&mycell(H148)&" og tryk Ctrl+R." -> Vælg celle H148 og tryk Ctrl+R.
F149: =ROW() -> 149
F150: =ROW() -> 150 | G150: XYZ
F151: =ROW() -> 151 | I151: ="Vælg celle "&mycell(G151)&" og tryk Ctrl+D." -> Vælg celle G151 og tryk Ctrl+D.
F152: =ROW() -> 152
F157: Kopier formler
G159: =CHAR(COLUMN()+64) -> G | H159: H | I159: I | J159: J | K159: K | L159: L
F160: =ROW() -> 160 | H160: 10 | K160: 10
F161: =ROW() -> 161 | H161: 20 | K161: 20
F162: =ROW() -> 162 | H162: 30 | K162: 30
F163: =ROW() -> 163 | H163: 40 | K163: 40
F164: =ROW() -> 164 | H164: 50 | K164: 50
F165: =ROW() -> 165
F166: =ROW() -> 166 | H166: =H160+H161+H162 -> 60 | K166: =K160+K161+K162 -> 60
F167: =ROW() -> 167 | H167: =H161+H162+H163 -> 90 | K167: =K160+K161+K162 -> 60
F168: =ROW() -> 168
F169: =ROW() -> 169 | H169: =IF(H167="","",_xlfn.FORMULATEXT(H167)) -> =H161+H162+H163 | K169: =IF(K167="","",_xlfn.FORMULATEXT(K167)) -> =K160+K161+K162
F170: =ROW() -> 170
F171: =ROW() -> 171 | H171: Prøv at trykke | K171: Prøv at trykke
F172: =ROW() -> 172 | H172: Ctrl+D og Enter | K172: Ctrl+ ' og Enter
F173: =ROW() -> 173 | H173: ="i celle "&mycell(H167) -> i celle H167 | K173: ="i celle "&mycell(K167) -> i celle K167
F174: =ROW() -> 174
F175: =ROW() -> 175
F176: =ROW() -> 176 | H176: Læg mærke til den forskellige virkemåde af Ctrl+D og Ctrl+ '
F177: =ROW() -> 177
F178: =ROW() -> 178
F179: =ROW() -> 179
F184: Kopier/Indsæt speciel
G186: =CHAR(COLUMN()+64) -> G | H186: =CHAR(COLUMN()+64) -> H | I186: Prøv at bruge funktionen STORE.BOGSTAVER i kolonne H
F187: =ROW() -> 187 | G187: John | I187: for at skrive JOHN, JETTE o.s.v.
F188: =ROW() -> 188 | G188: Jette | I188: Lad os nu sige, at du faktisk ønsker, at navnene med
F189: =ROW() -> 189 | G189: Jørgen | I189: store bogstaver skal stå i kolonne G og ikke i kolonne H.
F190: =ROW() -> 190 | G190: Bodil | I190: Hvordan vil du løse det?
G194: =CHAR(COLUMN()+64) -> G
F195: =ROW() -> 195 | G195: =ROW()*2 -> 390 | I195: ="Celle "&mycell(G195)&" indeholder formlen: "&showformula(G195)&". Lignende form- " -> Celle G195 indeholder formlen: =ROW()*2. Lignende form-
F196: =ROW() -> 196 | G196: =ROW()*2 -> 392 | I196: ="ler findes i "&mycell(G196)&":"&mycell(G205)&". Lad os sige, at du ønsker at kopiere" -> ler findes i G196:G205. Lad os sige, at du ønsker at kopiere
F197: =ROW() -> 197 | G197: 394 | I197: =mycell(G195)&":"&mycell(G210)&" og indsætte som værdier i det samme område"&"." -> G195:G210 og indsætte som værdier i det samme område.
F198: =ROW() -> 198 | G198: 396
F199: =ROW() -> 199 | G199: 398 | I199: ="1. Vælg celle "&mycell(G195)&":"&mycell(G210)&"." -> 1. Vælg celle G195:G210.
F200: =ROW() -> 200 | G200: 400 | I200: 2. Tryk Ctrl+C
F201: =ROW() -> 201 | G201: 402 | I201: 3. Højreklik musen og vælg Indsæt speciel.
F202: =ROW() -> 202 | G202: 404 | I202: 4. Vælg Værdier og tryk på OK.
F203: =ROW() -> 203 | G203: 406
F204: =ROW() -> 204 | G204: 408 | I204: En hurtigere måde:
F205: =ROW() -> 205 | G205: 410 | I205: ="1. Vælg celle "&mycell(G195)&":"&mycell(G210)&"." -> 1. Vælg celle G195:G210.
F206: =ROW() -> 206 | G206: 412 | I206: 2. Peg på den ydre kant til højre i en vilkårlig celle i området.
F207: =ROW() -> 207 | G207: 414 | I207: 3. Højreklik musen og træk én kolonne til højre, så der vises
F208: =ROW() -> 208 | G208: 416 | I208: =" en ramme om området "&mycell(H195)&":"&mycell(G210)&". Træk tilbage igen og " -> en ramme om området H195:G210. Træk tilbage igen og
F209: =ROW() -> 209 | G209: 418 | I209: slip musen. Herefter dukker der en række valgmuligheder
F210: =ROW() -> 210 | G210: 420 | I210: op. Vælg: "Kopier kun værdier hertil".
I212: En endnu hurtigere måde er én gang for alle at lave en stump
I213: VBA-kode og så lade Ctrl+Shift+V kalde denne kode.
I215: Sub CopyPasteValues()
I216: If TypeName(Selection) = "Range" Then
I217: Selection.Copy
I218: Selection.PasteSpecial xlPasteValues
I219: Application.CutCopyMode = False
I220: End If
I221: End Sub
F226: Hurtig indsætning af tekst fra en liste med tidligere indtastninger
F228: =ROW() -> 228 | G228: Fixed assets
F229: =ROW() -> 229 | G229: Anlægsaktiver
F230: =ROW() -> 230 | G230: Current assets
F231: =ROW() -> 231 | G231: Omsætningsaktiver
F232: =ROW() -> 232 | G232: Alllocated provisions
F233: =ROW() -> 233 | G233: Hensatte forpligtelser | J233: 1. Vælg den tomme celle under sidst udfyldte celle.
F234: =ROW() -> 234 | G234: Cash flow | J234: 2. Tryk på Alt+Pil ned.
F235: =ROW() -> 235 | G235: Pengestrøm
F236: =ROW() -> 236
F237: =ROW() -> 237
F238: =ROW() -> 238
F243: Formatering
F245: Excel tilbyder en lang række talformater, så du kan vælge det format der bedst opfylder dine
F246: ønsker. Talformater sættes under fanen Tal i dialogboksen "Formater celler". For at vise denne
F247: dialogboks kan du bruge en af følgende metoder:
F249: • | G249: Tryk Ctrl+1.
F250: • | G250: Højreklik på en celle og vælg "Formater celler".
F251: • | G251: Fra menuen, vælg "Formater".
F278: Brugerdefinerede formater som du laver, gemmes i dialogboksen under "Brugerdefineret" i
F279: den projektmappe, og kun den, hvor du lavede dem.
F282: Kolding | H282: ="Vælg "&mycell(F282)&" og tryk Ctrl+F (flere gange)." -> Vælg F282 og tryk Ctrl+F (flere gange).
F284: Fredericia | H284: ="Vælg "&mycell(F284)&" og tryk Ctrl+K (flere gange)." -> Vælg F284 og tryk Ctrl+K (flere gange).
F287: 12345678 | H287: Tryk på Ctrl+Shift+1 (her og neden for, Ctrl+Z for at fortryde)
F288: =TODAY() -> 45044 | H288: Tryk på Ctrl+Shift+3
F289: 98765432 | H289: Tryk på Ctrl+Shift+4
F290: 0.875 | H290: Tryk på Ctrl+Shift+5
F296: Genveje til indtastning adf dato/tidspunkt
F298: • | G298: Indsæt dags dato | J298: CTRL+ ;
F300: • | G300: Indsæt tidspunkt | J300: CTRL+ :
F305: Indsæt nyt ark | J305: Shift+F11
F307: Da det er så let (Shift+F11) at indsætte et nyt ark er der ingen grund til at starte nye projekt-
F308: mapper med en masse ark.
F335: I det felt der er omringet med rødt kan du anføre hvor mange ark Excel skal indeholde når du
F336: åbner en ny projektmappe.
F341: Autoudfyld
G343: =CHAR(COLUMN()+64) -> G | H343: =CHAR(COLUMN()+64) -> H | I343: =CHAR(COLUMN()+64) -> I | J343: =CHAR(COLUMN()+64) -> J | K343: =CHAR(COLUMN()+64) -> K
F344: =ROW() -> 344 | K344: Middel
F345: =ROW() -> 345 | G345: Type 1 | H345: 296 | I345: 280 | J345: 100 | K345: =AVERAGE(H345:J345) -> 225.3333333
F346: =ROW() -> 346
F347: =ROW() -> 347 | H347: 240 | I347: 305 | J347: 140 | L347: For at få samme formel i
F348: =ROW() -> 348 | L348: ="celle "&mycell(K345)&", "&mycell(K347)&", "&mycell(K349)&", " -> celle K345, K347, K349,
F349: =ROW() -> 349 | H349: 165 | I349: 100 | J349: 230 | L349: =mycell(K351)&" "&mycell(K353)&" og "&mycell(K355)&", marker" -> K351 K353 og K355, marker
F350: =ROW() -> 350 | L350: =mycell(K345)&":"&mycell(K346)&" og træk fyld-" -> K345:K346 og træk fyld-
F351: =ROW() -> 351 | H351: 120 | I351: 340 | J351: 230 | L351: ="håndtaget til celle "&mycell(K355)&"." -> håndtaget til celle K355.
F352: =ROW() -> 352
F353: =ROW() -> 353 | H353: 320 | I353: 190 | J353: 210 | L353: Gentag ovennævnte procedure
... 37 more rows
